[Event "FIDE WSCC 50 2022"]
[Site "Assisi"]
[Date "2022.11.18"]
[Round "4.4"]
[White "Holzke, Frank"]
[Black "Krizsany, Laszlo"]
[Result "1/2-1/2"]
[ECO "A40"]
[WhiteElo "2476"]
[BlackElo "2371"]
[Annotator "TA"]
[PlyCount "32"]
[EventDate "2022.11.14"]
[EventType "swiss"]
[EventCountry "ITA"]
[SourceTitle "playchess.com"]
[Source "ChessBase"]
[SourceQuality "1"]
[TimeControl "40/5400+30:1800+30"]

{[%evp 12,32,112,46,97,69,89,95,77,95,91,96,105,88,99,27,41,-62,-62,-57,-50,-80,-57]} 1. d4 {[%emt 0:00:11] Stohl,I} b6 {[%emt 0:00:14]} 2. e4 {[%emt 0:00:26]} Bb7 {[%emt 0:00:14]} 3. Bd3 {[%emt 0:00:23]} e6 {[%emt 0:00:14]} 4. c4 {[%emt 0:02:21]} f5 {[%emt 0:00:50]} 5. exf5 {[%emt 0:00:22]} Bb4+ {[%emt 0:00:18]} 6. Kf1 {[%emt 0:00:27]} Nf6 {[%emt 0:00:24]} 7. Be2 {[%emt 0:00:28]} ({White should try} 7. a3 $16 Bd6 8. fxe6) 7... O-O {[%emt 0:01:19] A40: Unusual replies to 1 d4.} (7... Qe7 $14) 8. c5 $1 $16 {[%emt 0:00:12]} bxc5 {[%emt 0:01:07]} 9. a3 {[%emt 0:00:17]} Ba5 {[%emt 0:01:00] Threatens to win with ...cxd4. White is better.} 10. dxc5 {[%emt 0:00:11]} Nd5 {[%emt 0:03:36] [#]} 11. Nf3 $1 {[%emt 0:00:13] [#] Bg5 is the strong threat.} ({Don't go for} 11. b4 $2 Qf6 12. Ra2 Qxf5 $17) 11... c6 $146 {[%emt 1:26:44]} ({Predecessor:} 11... Rxf5 12. b4 Nxb4 13. axb4 Bxb4 14. Bb2 a5 15. h4 Rd5 16. Qb3 Na6 17. Nc3 Nxc5 {1-0 (46) Beliavsky,A (2710)-Short,N (2660) Groningen 1997 CBM 063 [Stohl,I]}) 12. fxe6 {[%emt 0:22:06]} dxe6 {[%emt 0:00:00][%cal Bd7e6,Be6e5][%mdl 32]} 13. Qd4 {[%emt 0:00:51]} ({Better is} 13. Qc2 $16) 13... Nd7 {[%emt 0:00:00][%cal Oe6e5]} 14. Nc3 {[%emt 0:02:40]} (14. Nbd2 $14) 14... e5 $1 $15 {[%emt 0:00:00]} 15. Qc4 {[%emt 0:05:09] Black must now prevent b4.} (15. Nxe5 Nxe5 16. Qxe5 Qh4) 15... Bxc3 {[%emt 0:00:00]} 16. bxc3 {[%emt 0:00:11] [#]} a5 $1 {[%emt 0:00:00] Weighted Error Value: White=0.23 (precise) /Black=0.08 (flawless)} 1/2-1/2

[Event "FIDE WSCC 50 2022"]
[Site "Assisi"]
[Date "2022.11.18"]
[Round "4.5"]
[White "Prie, Eric"]
[Black "Pavlovic, Milos"]
[Result "1-0"]
[ECO "C02"]
[WhiteElo "2356"]
[BlackElo "2447"]
[Annotator "TA"]
[PlyCount "51"]
[EventDate "2022.11.14"]
[EventType "swiss"]
[EventCountry "ITA"]
[SourceTitle "playchess.com"]
[Source "ChessBase"]
[SourceQuality "1"]
[TimeControl "40/5400+30:1800+30"]

{[%evp 13,51,0,11,0,25,0,39,35,52,49,56,60,79,83,80,74,64,89,126,102,145,127,191,207,204,84,16,15,259,221,651,133,120,116,957,870,29988,29989,29985,29986]} 1. d4 {[%emt 0:02:24]} e6 {[%emt 0:00:09]} 2. Nf3 {[%emt 0:02:03]} c5 {[%emt 0:00:18]} 3. c3 {[%emt 0:00:25]} Nc6 {[%emt 0:01:18]} 4. e4 {[%emt 0:02:14]} d5 {[%emt 0:00:06]} 5. e5 {[%emt 0:00:39]} Bd7 {[%emt 0:01:19]} 6. Be2 {[%emt 0:00:08]} Nge7 {[%emt 0:01:20]} 7. Na3 {[%emt 0:06:26]} Ng6 {[%emt 0:01:03]} 8. h4 {[%emt 0:02:26][%cal Bh2h4,Bh4h5,Bh5g6][%mdl 32] C02: French: Advance Variation.} cxd4 {[%emt 0:01:12]} 9. cxd4 {[%emt 0:00:09]} h6 {[%emt 0:36:25]} 10. h5 {[%emt 0:09:58] White is slightly better.} Bxa3 {[%emt 0:00:18] [#]} 11. hxg6 $146 {[%emt 0:04:59]} ({Predecessor:} 11. bxa3 Nge7 12. Rb1 Na5 13. Rh3 Qc7 14. Kf1 O-O-O 15. a4 Kb8 16. Ba3 Nc8 17. Nd2 {1-0 (97) Sengupta,D (2555)-Nikolic,P (2622) Leiden 2013}) 11... Bb4+ {[%emt 0:00:19]} 12. Kf1 $1 {[%emt 0:00:11]} ({But not} 12. Bd2 Bxd2+ 13. Qxd2 f6 $11) 12... f6 {[%emt 0:24:55]} 13. a3 {[%emt 0:23:51]} Be7 {[%emt 0:01:11]} 14. b4 {[%emt 0:01:58]} fxe5 {[%emt 0:05:23]} 15. dxe5 {[%emt 0:01:58]} a6 {[%emt 0:04:25]} 16. Bf4 {[%emt 0:05:44] White is more active.} Qb6 {[%emt 0:03:43]} 17. Rc1 {[%emt 0:03:50]} O-O {[%emt 0:01:34]} (17... Rc8 $16 {was necessary.}) 18. Be3 $18 {[%emt 0:06:18]} Qc7 {[%emt 0:01:06][%cal Of8f3] [#]} 19. Bxh6 $1 {[%emt 0:01:45][%mdl 512]} Rxf3 $16 {[%emt 0:02:33]} 20. Bxg7 {[%emt 0:02:59]} Rf5 $2 {[%emt 0:06:15]} (20... Kxg7 $11 {and Black stays safe.} 21. Rh7+ (21. Bxf3 Qxe5 22. Rh5 Qf6 $17) 21... Kg8 22. Bxf3 Qxe5) 21. Qd2 {[%emt 0:15:08] Threatening mate with Rh8+.} Rg5 $2 {[%emt 0:03:57] [#]} (21... Bg5 22. Bf6 Bxf6 23. exf6 Qf4 24. Qxf4 (24. f7+ Kg7 $15) 24... Rxf4) 22. Bf6 $2 {[%emt 0:00:32]} (22. Qf4 $1 $18 {[%csl Gg6][%cal Rf4f7]} Rxg6 (22... Be8 23. Bf6) 23. Rc3) 22... Bxf6 {[%emt 0:01:51]} 23. exf6 $40 {[%emt 0:00:09][%mdl 128] White attacks with force. Dancing on a razor blade.} Rxg6 {[%emt 0:00:22][%mdl 8192]} (23... Qe5 $16 24. g7 (24. Rh7 Be8 $11) 24... Kf7) 24. Bd3 $18 {[%emt 0:01:43]} Be8 {[%emt 0:00:53]} 25. Bxg6 {[%emt 0:00:15]} Bxg6 {[%emt 0:00:00]} 26. Qg5 {[%emt 0:00:33] Weighted Error Value: White=0.43/Black=0.83} 1-0

[Event "FIDE WSCC 50 2022"]
[Site "Assisi"]
[Date "2022.11.18"]
[Round "4.6"]
[White "Danielsen, Henrik"]
[Black "Cummings, David H."]
[Result "1/2-1/2"]
[ECO "B15"]
[WhiteElo "2514"]
[BlackElo "2318"]
[Annotator "TA"]
[PlyCount "47"]
[EventDate "2022.11.14"]
[EventType "swiss"]
[EventCountry "ITA"]
[SourceTitle "playchess.com"]
[Source "ChessBase"]
[SourceQuality "1"]
[TimeControl "40/5400+30:1800+30"]

{[%evp 10,47,35,20,22,19,25,14,14,8,18,-34,-22,-18,-28,-36,-22,-22,-25,-20,-19,-12,0,0,0,-12,0,0,0,-6,0,0,0,0,20,0,0,0,0,0]} 1. e4 {[%emt 0:00:04]} c6 {[%emt 0:00:21]} 2. d4 {[%emt 0:03:10]} d5 {[%emt 0:00:09]} 3. Nd2 {[%emt 0:00:24]} dxe4 {[%emt 0:00:19]} 4. Nxe4 {[%emt 0:00:06]} Nf6 {[%emt 0:00:23]} 5. Nxf6+ {[%emt 0:00:55]} exf6 {[%emt 0:00:06]} 6. Be3 {[%emt 0:00:30]} Bd6 {[%emt 0:01:05] B15: Caro-Kann: 3 Nc3: 3...g6 and 3...dxe4 4 Nxe4 Nf6 5 Nxf6+ exf6.} 7. Bd3 {[%emt 0:00:22]} O-O {[%emt 0:02:25]} 8. Ne2 {[%emt 0:00:08]} ({Don't play} 8. Qh5 g6 9. Qd1 Qb6 $11) 8... Re8 {[%emt 0:01:41]} 9. Qd2 {[%emt 0:00:35]} Na6 {[%emt 0:04:17][%cal Bb8a6,Ba6b4,Bb4d3][%mdl 32] [#]} 10. O-O $146 {[%emt 0:08:27]} (10. Bxa6 $11 bxa6 11. O-O) ({Predecessor:} 10. c3 Nc7 11. Bf4 Nd5 12. Bxd6 Qxd6 13. O-O Bg4 14. Rfe1 Bxe2 15. Bxe2 Qf4 16. Qxf4 Nxf4 {1-0 (45) Bouzidi,A (2105)-Tritar,K (1822) Sousse 2021}) 10... Nb4 $15 {[%emt 0:05:58]} 11. Bf4 {[%emt 0:01:59]} Nxd3 {[%emt 0:06:52]} 12. Qxd3 {[%emt 0:00:47]} Bg4 {[%emt 0:06:26]} 13. f3 {[%emt 0:04:31] [#]} Bf5 {[%emt 0:06:48]} 14. Qxf5 {[%emt 0:00:24] aiming for Bxd6.} Rxe2 {[%emt 0:00:06] The position is equal.} 15. Qd3 $1 {[%emt 0:01:26] Strongly threatening Bxd6.} Re7 {[%emt 0:14:52]} ({Resist} 15... Bxf4 16. Qxe2 Qxd4+ 17. Kh1 $16) 16. Bxd6 {[%emt 0:03:12]} Qxd6 {[%emt 0:00:04]} 17. Rae1 {[%emt 0:00:49]} Rae8 {[%emt 0:05:57]} 18. Rxe7 {[%emt 0:00:18]} Qxe7 $11 {[%emt 0:03:01][%mdl 4096] Endgame KQR-KQR} 19. c3 {[%emt 0:05:59] Inhibits Qb4.} Qe2 {[%emt 0:03:14]} (19... h5 {with more complications.} 20. Kf2 g5 21. Rd1 b5) 20. Qxe2 {[%emt 0:00:14]} Rxe2 {[%emt 0:00:05]} 21. Rf2 $1 {[%emt 0:00:06]} Re1+ {[%emt 0:00:05]} 22. Rf1 {[%emt 0:00:07]} Re2 {[%emt 0:00:05]} 23. Rf2 $1 {[%emt 0:00:05]} Re1+ {[%emt 0:00:04]} 24. Rf1 {[%emt 0:00:06] An even fight not without its subleties.  Weighted Error Value: White=0.08 (flawless) /Black=0.05 (flawless)} 1/2-1/2

[Event "FIDE WSCC 50 2022"]
[Site "Assisi"]
[Date "2022.11.18"]
[Round "4.7"]
[White "Vinter-Schou, Uffe"]
[Black "Nevednichy, Vladislav"]
[Result "1/2-1/2"]
[ECO "E62"]
[WhiteElo "2375"]
[BlackElo "2499"]
[Annotator "TA"]
[PlyCount "139"]
[EventDate "2022.11.14"]
[EventType "swiss"]
[EventCountry "ITA"]
[SourceTitle "playchess.com"]
[Source "ChessBase"]
[SourceQuality "1"]
[TimeControl "40/5400+30:1800+30"]

{[%evp 18,139,18,14,23,11,9,7,25,10,22,4,25,0,33,27,23,39,35,28,60,55,96,80,96,95,95,95,95,92,99,77,90,85,80,76,85,68,64,61,62,69,83,55,86,35,84,37,97,48,58,57,97,97,97,97,114,116,110,97,99,95,95,89,85,85,85,85,85,85,107,107,107,107,178,107,1182,1068,1084,1063,1034,903,1101,1069,12835,12835,12836,12836,12837,12837,12837,12838,12838,12839,12839,12839,12840,12840,12841,12841,12842,12843,12843,12843,12844,12844,12845,12844,1751,0,0,0,0,0,0,0,0,0,0,0,0,0,0,0]} 1. Nf3 {[%emt 0:00:13]} Nf6 {[%emt 0:00:52]} 2. c4 {[%emt 0:01:09]} g6 {[%emt 0:01:00]} 3. g3 {[%emt 0:00:14]} Bg7 {[%emt 0:00:02]} 4. Bg2 {[%emt 0:00:10]} O-O {[%emt 0:00:09]} 5. O-O {[%emt 0:00:15]} d6 {[%emt 0:00:11]} 6. d4 {[%emt 0:00:06]} c6 {[%emt 0:00:05]} 7. Nc3 {[%emt 0:00:06]} Bf5 {[%emt 0:00:19]} 8. Re1 {[%emt 0:01:18]} Ne4 {[%emt 0:00:05]} 9. Qb3 {[%emt 0:00:52] 9.Qb3 scores better than 9.Nxe4.} Nxc3 {[%emt 0:00:11]} 10. bxc3 {[%emt 0:00:04]} Bc8 {[%emt 0:00:07] E62: King's Indian: Fianchetto: 6...c6 and Panno Variation (6...Nc6) without ...a6.} 11. e4 {[%emt 0:03:13]} Nd7 {[%emt 0:01:19]} 12. a4 {[%emt 0:01:35]} Qc7 {[%emt 0:09:04] [#]} 13. Be3 $146 {[%emt 0:02:42]} ({Predecessor:} 13. Ba3 c5 14. e5 dxe5 15. Rad1 Re8 16. Ng5 h6 17. Ne4 Rb8 18. Nxc5 {½-½ (18) Greenfeld,A (2560)-Klenburg,M (2403) Israel 2009}) 13... c5 {[%emt 0:03:50]} 14. a5 {[%emt 0:15:18]} e5 {[%emt 0:01:13]} 15. dxe5 {[%emt 0:22:31]} dxe5 {[%emt 0:05:47]} 16. Nd2 {[%emt 0:03:31]} Rb8 {[%emt 0:06:57]} 17. Nf1 {[%emt 0:08:29]} Nf6 {[%emt 0:12:51]} 18. Bc1 {[%emt 0:05:36]} Be6 {[%emt 0:00:08]} 19. Ne3 {[%emt 0:00:05]} h6 {[%emt 0:13:27]} 20. Rd1 {[%emt 0:04:06]} Rfd8 {[%emt 0:02:52]} 21. Nd5 {[%emt 0:02:13]} Bxd5 {[%emt 0:00:56]} 22. cxd5 {[%emt 0:00:09]} Ne8 {[%emt 0:00:10]} 23. Be3 {[%emt 0:00:31]} Nd6 {[%emt 0:00:25]} 24. f3 {[%emt 0:01:35]} Kh7 {[%emt 0:00:49]} 25. Bf1 {[%emt 0:09:18]} Rf8 {[%emt 0:01:06]} 26. Qa3 {[%emt 0:00:24] White is more active.} Rbc8 {[%emt 0:00:46]} 27. Bd3 {[%emt 0:08:20]} f5 {[%emt 0:02:02]} 28. Kg2 {[%emt 0:00:54]} f4 {[%emt 0:01:19]} 29. Bg1 {[%emt 0:00:11]} h5 {[%emt 0:00:26]} 30. Rf1 {[%emt 0:00:34]} Rf7 {[%emt 0:05:06]} 31. Rae1 {[%emt 0:01:21]} ({White should try} 31. c4 $16) 31... g5 {[%emt 0:02:09]} (31... c4 $14 32. Be2 a6) 32. gxf4 {[%emt 0:03:27]} (32. c4 $16) 32... gxf4 {[%emt 0:00:12]} ({Better is} 32... c4 $1 $14 33. Be2 gxf4) 33. Bf2 {[%emt 0:00:02]} (33. c4 $16) 33... Bf8 {[%emt 0:04:06]} 34. c4 {[%emt 0:00:35]} Qd7 {[%emt 0:09:16]} 35. Rg1 {[%emt 0:00:19]} (35. Bxc5 $2 Rg7+ 36. Kh1 Qh3 $1 $19) 35... Rg7+ {[%emt 0:04:11]} 36. Kh1 {[%emt 0:00:05]} Nf7 {[%emt 0:00:28]} (36... Qh3 $2 37. Rxg7+ (37. Bf1 Rxg1+ 38. Kxg1 Qd7 $16) 37... Bxg7 38. Bf1 $16) 37. Rxg7+ {[%emt 0:00:17]} Kxg7 {[%emt 0:00:04]} 38. Rg1+ {[%emt 0:00:31]} Kh7 {[%emt 0:00:05]} 39. Bf1 {[%emt 0:02:19]} Bd6 {[%emt 0:00:35]} 40. h4 {[%emt 0:02:34]} Rg8 {[%emt 0:01:46]} 41. Rxg8 {[%emt 0:31:06]} (41. Bxc5 $2 Qe7 42. Qb2 (42. Rxg8 $2 Bxc5 43. Qb2 Qxh4+ 44. Qh2 Qxh2+ 45. Kxh2 Kxg8 $19) 42... Bxc5 $19) (41. Bg2 {with more complications.} Rg7 42. Kh2 Qd8 43. Bh3) 41... Kxg8 {[%emt 0:30:02]} 42. Kh2 {[%emt 0:00:55]} ({Reject} 42. Bxc5 $6 Qe7 43. Bxd6 Qxh4+ 44. Kg2 (44. Kg1 Qg3+ 45. Bg2 Qe1+ 46. Bf1 Nxd6 $11) 44... Qg3+ 45. Kh1 Qh4+ 46. Kg2 (46. Kg1 Qg3+ 47. Bg2 Qe1+ 48. Bf1 Nxd6 $11) 46... Qg3+ 47. Kh1 Qh4+ $11) 42... Qd8 {[%emt 0:07:02]} 43. Bh3 {[%emt 0:00:00]} Kg7 {[%emt 0:00:00]} 44. Qa1 {[%emt 0:00:00]} Nh8 {[%emt 0:00:00]} 45. Bf5 {[%emt 0:00:00]} Ng6 {[%emt 0:00:00]} (45... Kh6 $16 46. Kh3 b6) 46. Kh3 {[%emt 0:00:00]} (46. Bxg6 $18 Kxg6 47. Qf1) 46... Nf8 $2 {[%emt 0:00:00][%mdl 8192]} (46... Kh6 $16) 47. Qg1+ $18 {[%emt 0:00:00]} Kf7 {[%emt 0:00:00]} 48. Bxc5 {[%emt 0:00:00]} Bxc5 {[%emt 0:00:00]} 49. Qxc5 {[%emt 0:00:00] Strongly threatening d6.} b6 {[%emt 0:00:00]} 50. axb6 {[%emt 0:00:00]} Qxb6 {[%emt 0:00:00]} 51. Qxb6 {[%emt 0:00:00]} axb6 {[%emt 0:00:00][%mdl 4096] Endgame KB-KN} 52. Kg2 {[%emt 0:00:00]} Ke7 {[%emt 0:00:00]} 53. Kf2 {[%emt 0:00:00]} Kd6 {[%emt 0:00:00]} 54. Ke2 {[%emt 0:00:00]} Kc5 {[%emt 0:00:00]} 55. Kd3 {[%emt 0:00:00]} b5 {[%emt 0:00:00]} 56. cxb5 {[%emt 0:00:00]} Kxb5 {[%emt 0:00:00]} 57. Kc3 {[%emt 0:00:00]} Kc5 {[%emt 0:00:00]} 58. Kb3 {[%emt 0:00:00]} Kd4 {[%emt 0:00:00] [#]} 59. d6 $1 {[%emt 0:00:00]} Ke3 {[%emt 0:00:00]} 60. Kc4 {[%emt 0:00:00]} ({Weaker is} 60. d7 Nxd7 61. Bxd7 Kxf3 $11) 60... Kxf3 {[%emt 0:00:00]} 61. Kd5 {[%emt 0:00:00]} ({And not} 61. d7 Nxd7 62. Bxd7 Kxe4 $11) 61... Kg3 {[%emt 0:00:00]} 62. Kxe5 {[%emt 0:00:00]} f3 {[%emt 0:00:00] [#]} 63. Bc8 $2 {[%emt 0:00:00]} (63. d7 $1 $18 {[%cal Rd7d8]} Nxd7+ 64. Bxd7 Kxh4 65. Kd4) 63... Kxh4 $11 {[%emt 0:00:00] aiming for ...Kg3. The position is equal.} (63... f2 $5 64. Ba6 $8 Kxh4 $18) 64. Kf4 {[%emt 0:02:00]} f2 {[%emt 0:00:00]} 65. Ba6 {[%emt 0:00:01]} Ne6+ {[%emt 0:00:00]} 66. Kf3 {[%emt 0:07:00]} Kg5 {[%emt 0:01:36]} 67. Kxf2 {[%emt 0:00:17] Hoping for Bc4.} Kf4 {[%emt 0:00:29]} 68. Bc8 {[%emt 0:00:05]} Nc5 {[%emt 0:00:15]} 69. Bf5 {[%emt 0:02:31]} Ke5 {[%emt 0:00:05]} 70. d7 {[%emt 0:04:23] White really could win this.  Weighted Error Value: White=0.13 (very precise) /Black=0.15 (very precise)} 1/2-1/2

[Event "FIDE WSCC 50 2022"]
[Site "Assisi"]
[Date "2022.11.18"]
[Round "4.8"]
[White "Arakhamia-Grant, Ketevan"]
[Black "Antic, Dejan"]
[Result "1/2-1/2"]
[ECO "C11"]
[WhiteElo "2327"]
[BlackElo "2412"]
[Annotator "TA"]
[PlyCount "67"]
[EventDate "2022.11.14"]
[EventType "swiss"]
[EventCountry "ITA"]
[SourceTitle "playchess.com"]
[Source "ChessBase"]
[SourceQuality "1"]
[TimeControl "40/5400+30:1800+30"]

{[%evp 20,67,28,29,30,22,35,47,52,39,60,37,39,27,45,41,48,11,20,29,56,18,38,27,27,35,33,-67,10,0,0,0,0,11,43,0,48,0,17,46,52,45,40,39,17,0,64,6,61,52]} 1. e4 {[%emt 0:02:23]} e6 {[%emt 0:00:12]} 2. d4 {[%emt 0:00:06]} d5 {[%emt 0:00:12]} 3. Nc3 {[%emt 0:00:15]} Nf6 {[%emt 0:00:52]} 4. e5 {[%emt 0:00:07]} Nfd7 {[%emt 0:00:08]} 5. f4 {[%emt 0:00:10]} c5 {[%emt 0:00:16]} 6. Nf3 {[%emt 0:00:03]} Nc6 {[%emt 0:00:12]} 7. Be3 {[%emt 0:00:05]} cxd4 {[%emt 0:00:57]} 8. Nxd4 {[%emt 0:00:10]} Bc5 {[%emt 0:00:25]} 9. Qd2 {[%emt 0:00:19]} O-O {[%emt 0:01:22]} 10. O-O-O {[%emt 0:00:44]} a6 {[%emt 0:00:39]} 11. Nb3 {[%emt 0:00:50]} b6 {[%emt 0:12:05] C11: French: Classical System: 4 e5 and 4 Bg5 dxe4.} 12. h4 {[%emt 0:04:13][%cal Bh2h4,Bh4h5,Bh5h6][%mdl 32]} Bb7 {[%emt 0:02:51]} 13. h5 {[%emt 0:01:55]} Rc8 {[%emt 0:03:42]} 14. Rh3 {[%emt 0:01:16]} Qe7 {[%emt 0:05:09] [#]} 15. h6 $146 {[%emt 0:22:28]} ({Predecessor:} 15. Kb1 Rfd8 16. Ne2 f6 17. Ned4 fxe5 18. fxe5 Rf8 19. Nxc6 Bxc6 20. h6 g6 21. Bg5 {1-0 (37) Nijboer,F (2578)-Glek,I (2551) Apeldoorn 2001}) 15... Bxe3 {[%emt 0:12:37]} 16. Qxe3 {[%emt 0:12:35]} g6 {[%emt 0:00:25]} 17. g4 {[%emt 0:00:27]} Nc5 {[%emt 0:14:18]} 18. Nd4 {[%emt 0:03:29]} b5 {[%emt 0:04:34]} 19. a3 {[%emt 0:04:12][%cal Od4f5]} Rfd8 {[%emt 0:03:26]} 20. Bg2 {[%emt 0:02:05]} Na5 {[%emt 0:02:00]} 21. Kb1 {[%emt 0:17:05]} Nc4 {[%emt 0:00:36]} 22. Qe1 {[%emt 0:00:48]} Nd7 {[%emt 0:08:53]} 23. Na2 {[%emt 0:04:52]} ({White should try} 23. Bf1 $14) 23... Ndb6 {[%emt 0:03:52]} (23... g5 $15 24. f5 Ndxe5) 24. Bf1 {[%emt 0:02:08]} Na4 {[%emt 0:01:02]} 25. Bxc4 {[%emt 0:04:59]} dxc4 {[%emt 0:00:50]} 26. Nc3 {[%emt 0:01:54]} Nc5 {[%emt 0:08:39]} 27. Qe3 {[%emt 0:02:27]} Nd7 {[%emt 0:05:07]} (27... Ba8 $11 {might be stronger.}) 28. Rh2 {[%emt 0:00:32]} b4 {[%emt 0:02:31]} 29. axb4 {[%emt 0:00:27]} Qxb4 {[%emt 0:00:22]} 30. Rhd2 $1 {[%emt 0:00:36][%cal Od4e6] [#] And now Nxe6! would win.} Rb8 {[%emt 0:00:52][%cal Ob7f3] White must now prevent ...Bf3!} 31. Na2 {[%emt 0:00:48]} ({Not} 31. Nxe6 $2 Bc6 32. b3 fxe6 $19) 31... Qe7 {[%emt 0:01:03]} 32. Kc1 {[%emt 0:08:13]} Bd5 {[%emt 0:00:39]} ({Black should play} 32... Nb6 $1 $11) 33. Ne2 {[%emt 0:00:52]} (33. Qa3 $14 Qxa3 34. bxa3) 33... Nb6 {[%emt 0:06:12]} (33... Nc5 $11) 34. Qa3 {[%emt 0:03:57] Weighted Error Value: White=0.18 (very precise) /Black=0.18 (very precise)} 1/2-1/2

[Event "FIDE WSCC 50 2022"]
[Site "Assisi"]
[Date "2022.11.18"]
[Round "4.9"]
[White "Dishman, Stephen"]
[Black "Arkell, Keith C"]
[Result "1-0"]
[ECO "A30"]
[WhiteElo "2255"]
[BlackElo "2408"]
[Annotator "TA"]
[PlyCount "93"]
[EventDate "2022.11.14"]
[EventType "swiss"]
[EventCountry "ITA"]
[SourceTitle "playchess.com"]
[Source "ChessBase"]
[SourceQuality "1"]
[TimeControl "40/5400+30:1800+30"]

{[%evp 17,93,29,17,18,27,31,31,31,60,60,110,116,110,97,118,113,120,141,141,141,148,148,148,148,147,148,143,142,141,101,174,174,174,174,174,141,141,102,102,102,172,179,197,198,200,186,322,322,1207,956,1395,1379,1203,1202,2171,1983,2075,1928,2008,1967,29970,29970,4622,8,8,8,4133,0,8,8,278,278,1121,140,140,159,471,452]} 1. Nf3 {[%emt 0:00:03]} Nf6 {[%emt 0:00:09]} 2. c4 {[%emt 0:00:05]} b6 {[%emt 0:00:45]} 3. g3 {[%emt 0:00:34]} Bb7 {[%emt 0:00:04]} 4. Bg2 {[%emt 0:00:08]} c5 {[%emt 0:00:20]} 5. O-O {[%emt 0:01:40]} g6 {[%emt 0:00:07]} 6. b3 {[%emt 0:00:57]} Bg7 {[%emt 0:00:06]} 7. Bb2 {[%emt 0:00:06]} O-O {[%emt 0:00:05]} 8. d4 {[%emt 0:00:39]} cxd4 {[%emt 0:00:07]} 9. Qxd4 {[%emt 0:00:09]} Nc6 {[%emt 0:00:27]} 10. Qh4 {[%emt 0:02:34] A30: Symmetrical English: Double Fianchetto and Hedgehog.} h6 {[%emt 0:02:47]} 11. Bxf6 {[%emt 0:00:38]} Bxf6 {[%emt 0:08:06]} 12. Qxh6 {[%emt 0:00:08][%cal Of3g5] [#] White is slightly better.} e6 $146 {[%emt 0:00:05] Hoping for ...Bg7.} (12... Bxa1 $2 13. Ng5 Re8 14. Qh7+ Kf8 15. Qxf7#) (12... Bg7 13. Qh4 $16) ({Predecessor:} 12... Nd4 13. Nxd4 Bxd4 14. Bxb7 Rb8 15. Nd2 Bg7 16. Qh4 Bxa1 17. Rxa1 Rxb7 18. Qh6 d5 {1-0 (48) Dizdarevic,E (2530)-Galic,Z (2365) Porec 1998}) 13. Nc3 $1 {[%emt 0:03:04]} Bg7 {[%emt 0:19:15]} (13... Bxc3 $2 14. Ng5 Qxg5 15. Qxg5 $18) (13... Nb4 $14) 14. Qd2 $16 {[%emt 0:00:37]} d5 {[%emt 0:01:42]} 15. cxd5 {[%emt 0:02:04]} exd5 {[%emt 0:04:17]} 16. Rad1 {[%emt 0:02:17]} (16. Nxd5 $6 Bxa1 17. Rxa1 Nd4 $11) (16. Rfd1 {looks sharper.} d4 17. Nb5 Qe7 18. Nbxd4 Nxd4 19. Nxd4 Bxd4 20. Qxd4 Bxg2 21. Kxg2 Qxe2 22. Rd2) 16... d4 {[%emt 0:08:52]} 17. Nb5 {[%emt 0:02:28]} Rc8 {[%emt 0:00:27]} 18. Nfxd4 {[%emt 0:07:20] White has more active pieces.} Nxd4 {[%emt 0:01:18]} 19. Nxd4 {[%emt 0:01:34]} Bxg2 {[%emt 0:00:07]} 20. Kxg2 {[%emt 0:00:19]} Qxd4 {[%emt 0:02:22]} 21. Qxd4 {[%emt 0:00:07]} Bxd4 {[%emt 0:00:03]} 22. Rxd4 {[%emt 0:00:07][%mdl 4096] Endgame KRR-KRR} Rc2 {[%emt 0:00:03] Prevents Rd2.} 23. e3 {[%emt 0:12:13]} Rxa2 {[%emt 0:00:06]} (23... Re8 $16 {was worth a try.}) 24. Rc1 $1 $18 {[%emt 0:00:50]} Rb2 {[%emt 0:11:58]} 25. b4 {[%emt 0:06:55]} f6 {[%emt 0:14:36]} 26. Rc7 {[%emt 0:20:17]} Rf7 {[%emt 0:00:06]} 27. Rdd7 {[%emt 0:02:33]} Rxd7 {[%emt 0:00:09]} 28. Rxd7 {[%emt 0:00:02]} Rxb4 {[%emt 0:00:09]} (28... a6 $16) 29. Rxa7 $16 {[%emt 0:00:08] KR-KR} g5 {[%emt 0:00:08]} 30. h3 {[%emt 0:01:43][%cal Bh2h3,Bh3h4,Bh4h5,Bh5h6,Bh6h7][%mdl 32]} Kf8 {[%emt 0:03:51]} 31. f4 {[%emt 0:04:04]} gxf4 {[%emt 0:01:01]} (31... Rb3 $142 32. Kf3 gxf4) 32. exf4 $18 {[%emt 0:04:50]} (32. gxf4 Rb1 33. Kg3 Rg1+ 34. Kf3 f5 $18) 32... f5 $2 {[%emt 0:00:26]} (32... Rb2+ 33. Kf3 Rb3+ 34. Kg4 Re3) 33. h4 {[%emt 0:01:20]} Rb2+ {[%emt 0:05:04]} 34. Kh3 {[%emt 0:00:36]} Rb1 {[%emt 0:01:16]} 35. Rd7 {[%emt 0:01:10]} Rb5 {[%emt 0:07:50]} 36. h5 {[%emt 0:02:02]} Kg8 {[%emt 0:00:10]} 37. Kh4 {[%emt 0:00:59] White threatens h6 and mate.} Rc5 {[%emt 0:00:23]} 38. h6 {[%emt 0:08:12]} Rc6 {[%emt 0:05:37]} 39. h7+ {[%emt 0:05:56]} Kh8 {[%emt 0:00:01]} 40. Rf7 $2 {[%emt 0:02:33]} (40. Kg5 $18 Rc3 41. g4 fxg4 42. Kxg4) 40... b5 $11 {[%emt 0:01:08]} 41. Rb7 $1 {[%emt 0:35:31] Threatens to win with Kg5.} Rc5 $2 {[%emt 0:34:49][%mdl 8192]} (41... b4 $11) 42. Rf7 $2 {[%emt 0:00:00]} (42. Kg5 $18 Rc3 43. g4 (43. Rxb5 Rxg3+ 44. Kxf5 Kxh7 $14) 43... fxg4 44. Kxg4) 42... b4 {[%emt 0:00:00]} 43. Rb7 {[%emt 0:00:00]} Rd5 $2 {[%emt 0:00:00][%mdl 8192]} (43... Rc3 $11) 44. Rxb4 $18 {[%emt 0:00:00]} Kxh7 $2 {[%emt 0:00:00]} (44... Rd7 45. Rb3 Rb7) 45. Kg5 $2 {[%emt 0:00:00]} (45. Rb3 $18 {and the rest is easy.} Kg6 46. Rb6+ Kf7 47. Kg5) 45... Rd3 $16 {[%emt 0:00:00] [#]} 46. Rb7+ $1 {[%emt 0:00:00]} (46. Kxf5 Rxg3 47. Ke5 Ra3 $11) 46... Kg8 $2 {[%emt 0:00:00] [#]} (46... Kh8 $16 {is more resistant.} 47. Kh4 (47. Kxf5 Rxg3 48. Kf6 Kg8 $16) 47... Rd8) 47. Kh4 $1 {[%emt 0:00:00] Weighted Error Value: White=0.63/Black=0.61} 1-0